bitfinex/quotes_BTCUSD_20251215
["timestamp","ask_amount","ask_price","bid_price","bid_amount"]
[1765832109365,0.24416343,86008.0,86007.0,0.03513]
[1765832109729,0.24416343,86008.0,86005.0,0.01162723]
[1765832109981,0.01162682,86008.0,86005.0,0.001]
[1765832110227,0.23253921,86007.0,86006.0,0.001]
[1765832110545,0.01162817,85998.0,85992.0,0.01162898]
[1765832110746,0.01162817,85998.0,85993.0,0.23257592]
[1765832110747,0.2441963,85997.0,85993.0,0.23257592]
[1765832110946,0.01162709,86006.0,86000.0,0.0116279]
[1765832111247,0.01162817,85998.0,85994.0,0.01324158]
[1765832111463,0.23257166,85995.0,85994.0,0.00161287]
[1765832111891,0.23257977,85992.0,85991.0,7.098e-05]
[1765832112935,0.01162844,85996.0,85991.0,0.08710098]
[1765832113217,0.01162871,85994.0,85991.0,0.00107098]
[1765832113345,0.20757977,85992.0,85991.0,0.00107098]
[1765832113772,0.20757977,85992.0,85991.0,7.098e-05]
[1765832114375,0.20757977,85992.0,85991.0,0.00107098]
[1765832114581,0.25,86010.0,86004.0,0.23254732]
[1765832114785,0.01162614,86013.0,86005.0,0.03006723]
[1765832114950,0.03125814,86028.0,86005.0,0.03006723]
[1765832114951,0.01162669,86009.0,86005.0,0.26261159]
[1765832115313,0.01162628,86012.0,86007.0,0.23253875]
[1765832115509,0.01162628,86012.0,86005.0,0.02005287]
[1765832115510,0.23254191,86006.0,86005.0,0.00161287]
[1765832117693,0.001,86006.0,86005.0,0.00161287]
[1765832117907,0.01162682,86008.0,86005.0,0.24578471]
[1765832118107,0.23253644,86009.0,86006.0,0.23254007]
[1765832118312,0.0116256,86017.0,86014.0,0.01162601]
[1765832118523,0.23250203,86021.0,86016.0,0.01162574]
[1765832118722,0.01162452,86025.0,86020.0,0.0116252]
[1765832119087,0.01162479,86023.0,86020.0,0.0116252]
[1765832119289,0.01162452,86025.0,86021.0,0.01162506]
[1765832119495,0.23246948,86033.0,86021.0,0.01162506]
[1765832119496,0.31577435,86039.0,86026.0,0.01162439]
[1765832119725,0.25752977,86039.0,86027.0,0.01162425]
[1765832119898,0.01162398,86029.0,86026.0,0.24572431]
[1765832120345,0.23248251,86028.0,86026.0,0.00161287]
[1765832120601,0.01200395,86039.0,86033.0,0.01162344]
[1765832120780,0.01200395,86039.0,86035.0,0.2440867]
[1765832121070,0.00038132,86039.0,86036.0,0.01162304]
[1765832121246,0.00038132,86039.0,86038.0,0.23245542]
[1765832121449,0.00038132,86039.0,86038.0,0.32109829]
[1765832121859,0.00038132,86039.0,86038.0,0.08864287]
[1765832122472,0.00038132,86039.0,86038.0,0.11188841]
[1765832122901,0.00138132,86039.0,86038.0,0.11288841]
[1765832123267,0.00038132,86039.0,86038.0,0.11288841]
[1765832123476,0.00038132,86039.0,86038.0,0.11388841]
[1765832124426,0.00038132,86039.0,86038.0,0.09064287]
[1765832124750,0.00038132,86039.0,86038.0,0.11388841]
[1765832126015,0.00038132,86039.0,86038.0,0.11288841]
[1765832126217,0.00038132,86039.0,86038.0,0.11188841]
[1765832126413,0.00038132,86039.0,86038.0,0.11488841]
[1765832126619,0.00038132,86039.0,86038.0,0.11788841]
[1765832126814,0.00038132,86039.0,86038.0,0.11488841]
[1765832127190,0.00038132,86039.0,86038.0,0.09264287]
[1765832127407,0.00038132,86039.0,86038.0,0.09164287]
[1765832127586,0.00038132,86039.0,86038.0,0.32109829]
[1765832127943,0.00038132,86039.0,86038.0,0.34253829]
[1765832128143,0.00038132,86039.0,86038.0,0.34453829]
[1765832128556,0.00038132,86039.0,86038.0,0.34253829]
[1765832128924,0.00038132,86039.0,86038.0,0.50901027]
[1765832129326,0.00038132,86039.0,86038.0,0.51001027]
[1765832129531,0.00038132,86039.0,86038.0,0.32509829]
[1765832129728,0.00038132,86039.0,86038.0,0.34253829]
[1765832129908,0.00038132,86039.0,86038.0,0.34553829]
[1765832130544,0.00038132,86039.0,86038.0,0.34253829]
[1765832130743,0.00038132,86039.0,86038.0,0.32109829]
[1765832130947,0.00038132,86039.0,86038.0,0.33953829]
[1765832131265,0.00038132,86039.0,86038.0,0.32309829]
[1765832131508,0.00038132,86039.0,86038.0,0.34153829]
[1765832131658,0.00038132,86039.0,86038.0,0.33953829]
[1765832132003,0.00038132,86039.0,86038.0,0.34253829]
[1765832132170,0.00038132,86039.0,86038.0,0.34553829]
[1765832132699,0.00038132,86039.0,86038.0,0.34253829]
[1765832132902,0.00038132,86039.0,86038.0,0.33953829]
[1765832133272,0.00038132,86039.0,86038.0,0.34153829]
[1765832133855,0.00038132,86039.0,86038.0,0.33953829]
[1765832134060,0.00038132,86039.0,86038.0,0.34153829]
[1765832134912,0.00038132,86039.0,86038.0,0.33953829]
[1765832135279,0.00038132,86039.0,86038.0,0.34153829]
[1765832135685,0.00038132,86039.0,86038.0,0.33953829]
[1765832135885,0.00038132,86039.0,86038.0,0.25450829]
[1765832136085,0.00038132,86039.0,86038.0,0.23406829]
[1765832136309,0.00038132,86039.0,86038.0,0.00161287]
[1765832136551,0.23283404,86039.0,86038.0,0.02405287]
[1765832136764,0.00038132,86039.0,86038.0,0.02405287]
[1765832136967,0.00038132,86039.0,86038.0,0.25250829]
[1765832137249,0.00038132,86039.0,86038.0,0.25450829]
[1765832137422,0.00038132,86039.0,86038.0,0.25350829]
[1765832137828,0.00038132,86039.0,86038.0,0.002]
[1765832138244,0.00038132,86039.0,86038.0,0.02044]
[1765832139212,0.00038132,86039.0,86038.0,0.13207841]
[1765832141803,0.00038132,86039.0,86038.0,0.13107841]
[1765832142122,0.00038132,86039.0,86038.0,0.13307841]
[1765832142370,0.00038132,86039.0,86038.0,0.13607841]
[1765832142749,0.00038132,86039.0,86038.0,0.48498742]
[1765832142946,0.00038132,86039.0,86038.0,0.46174188]
[1765832143122,0.00038132,86039.0,86038.0,0.34528829]
[1765832143890,0.00038132,86039.0,86038.0,0.09439287]
[1765832144088,0.23283404,86039.0,86038.0,0.02605287]
[1765832144308,0.00038132,86039.0,86038.0,0.00761287]
[1765832144441,0.00038132,86039.0,86038.0,0.29393829]
[1765832144871,0.00038132,86039.0,86038.0,0.29093829]
[1765832145186,0.00038132,86039.0,86038.0,0.28893829]
[1765832145483,0.00038132,86039.0,86038.0,0.34128829]
[1765832149609,0.00038132,86039.0,86038.0,0.34028829]
[1765832149802,0.00038132,86039.0,86038.0,0.33928829]
[1765832150015,0.00038132,86039.0,86038.0,0.34228829]
[1765832150214,0.00038132,86039.0,86038.0,0.32684829]
[1765832150438,0.00038132,86039.0,86038.0,0.27549829]
[1765832150658,0.00038132,86039.0,86038.0,0.29393829]
[1765832150859,0.00038132,86039.0,86038.0,0.29093829]
[1765832151058,0.00038132,86039.0,86038.0,0.00461287]
[1765832151262,0.23283404,86039.0,86038.0,0.02405287]
[1765832151667,0.23283404,86039.0,86038.0,0.001]
[1765832152475,0.01162358,86032.0,86026.0,0.01162439]
[1765832152678,0.24409271,86033.0,86029.0,0.24410364]
[1765832152902,0.23247174,86032.0,86030.0,0.23247605]
[1765832153245,0.23247174,86032.0,86029.0,0.2441036]
[1765832153668,0.24409271,86033.0,86030.0,0.23247526]
[1765832154018,0.24409496,86033.0,86030.0,0.24409911]
[1765832154221,0.24409496,86033.0,86029.0,0.01162398]
[1765832154726,0.24509496,86033.0,86029.0,0.01162398]
[1765832154889,0.24509496,86033.0,86029.0,0.01262398]
[1765832155089,0.24409496,86033.0,86030.0,0.24410036]
[1765832155294,0.01162344,86033.0,86030.0,0.24410036]
[1765832155590,0.24409136,86034.0,86031.0,0.23247313]
[1765832155798,0.24409136,86034.0,86029.0,0.01262398]
[1765832155799,0.23247704,86030.0,86029.0,0.001]
[1765832156207,0.24410636,86029.0,86025.0,0.23249053]
[1765832156797,0.23248892,86026.0,86024.0,0.01844]
[1765832156995,0.244104,86029.0,86024.0,0.01844]
[1765832157148,0.244104,86029.0,86026.0,0.23248652]
[1765832158003,0.23248275,86028.0,86025.0,0.23249055]
[1765832158236,0.23248538,86027.0,86025.0,0.01162452]
[1765832158452,0.24410687,86028.0,86025.0,0.2441146]
[1765832159105,0.24410892,86028.0,86025.0,0.01162452]
[1765832159316,0.24510892,86028.0,86025.0,0.01162452]
[1765832159537,0.24510892,86028.0,86024.0,0.2625528]
[1765832159745,0.2441095,86027.0,86024.0,0.03006466]
[1765832159932,0.01162425,86027.0,86024.0,0.26255559]
[1765832160139,0.001,86028.0,86025.0,0.01162452]
[1765832160343,0.001,86028.0,86026.0,0.23248758]
[1765832160756,0.01162223,86042.0,86036.0,0.23246083]
[1765832160901,0.01162155,86047.0,86038.0,0.23245542]
[1765832161112,0.2907,86050.0,86038.0,0.26949829]
[1765832161314,0.30232115,86050.0,86038.0,0.32084829]
[1765832161737,0.01162155,86047.0,86038.0,0.32084829]
[1765832162214,0.00138132,86039.0,86038.0,0.32084829]
[1765832162393,0.00138132,86039.0,86038.0,0.43730188]
[1765832162798,0.00138132,86039.0,86038.0,0.32084829]
[1765832163408,0.00138132,86039.0,86038.0,0.61154829]
[1765832163551,0.00138132,86039.0,86038.0,0.72800188]
[1765832163752,0.00038132,86039.0,86038.0,0.77802027]
[1765832164189,0.00038132,86039.0,86038.0,0.78402027]
[1765832164390,0.00038132,86039.0,86038.0,0.78102027]
[1765832164746,0.00038132,86039.0,86038.0,0.78502027]
[1765832165219,0.00038132,86039.0,86038.0,0.77802027]
[1765832165436,0.00038132,86039.0,86038.0,0.78202027]
[1765832165613,0.00038132,86039.0,86038.0,0.78602027]
[1765832167598,0.00038132,86039.0,86038.0,0.73600188]
[1765832167810,0.00038132,86039.0,86038.0,0.61954829]
[1765832168452,0.00038132,86039.0,86038.0,0.61554829]
[1765832168659,0.00038132,86039.0,86038.0,0.61354829]
[1765832168908,0.00038132,86039.0,86038.0,0.63398829]
[1765832169118,0.00038132,86039.0,86038.0,0.63198829]
[1765832169372,0.00038132,86039.0,86038.0,0.74844188]
[1765832169571,0.00038132,86039.0,86038.0,0.75144188]
[1765832170013,0.00038132,86039.0,86038.0,0.74844188]
[1765832170220,0.00038132,86039.0,86038.0,0.74644188]
[1765832170481,0.00038132,86039.0,86038.0,0.75344188]
[1765832170700,0.00038132,86039.0,86038.0,0.75044188]
[1765832171093,0.00038132,86039.0,86038.0,0.75544188]
[1765832172584,0.00038132,86039.0,86038.0,0.75144188]
[1765832172966,0.50739125,86136.0,86038.0,0.75144188]
[1765832172967,0.0004,86079.0,86076.0,0.01161764]
[1765832173219,0.23237276,86069.0,86067.0,0.01844]
[1765832173523,0.2323744,86068.0,86067.0,0.01844]
[1765832174926,0.0116202,86057.0,86053.0,0.01162074]
[1765832175083,0.24402154,86058.0,86053.0,0.01162074]
[1765832175283,0.24402192,86058.0,86055.0,0.2324095]
[1765832175550,0.23239125,86062.0,86058.0,0.24402147]
[1765832175693,0.23239125,86062.0,86059.0,0.23239792]
[1765832175891,0.24401246,86063.0,86060.0,0.23239352]
[1765832176273,0.01161939,86063.0,86061.0,0.23239314]
[1765832176487,0.01161953,86062.0,86059.0,0.24401605]
[1765832176631,0.24400981,86063.0,86060.0,0.23239551]
[1765832176834,0.24400981,86063.0,86060.0,0.24401531]
[1765832178252,0.232396,86060.0,86057.0,0.24401906]
[1765832178654,0.01161953,86062.0,86055.0,0.06120047]
[1765832178655,0.01162007,86058.0,86055.0,0.06120047]
[1765832178820,0.23240473,86057.0,86055.0,0.04958]
[1765832179176,0.01162007,86058.0,86053.0,0.01162074]
[1765832179335,0.24402202,86058.0,86057.0,0.03492]
[1765832179737,0.2324014,86058.0,86057.0,0.03592]
[1765832179938,0.2324014,86058.0,86057.0,0.001]
[1765832180257,0.01161993,86059.0,86057.0,0.001]
[1765832180458,0.01161993,86059.0,86058.0,0.0845]
[1765832180656,0.24401863,86059.0,86058.0,0.03492]
[1765832182050,0.01161993,86059.0,86055.0,0.01162047]
[1765832182388,0.01161993,86059.0,86057.0,0.001]
[1765832182587,0.2324014,86058.0,86057.0,0.001]
[1765832182789,0.2324014,86058.0,86056.0,0.04958]
[1765832183777,0.2324041,86057.0,86056.0,0.04958]
[1765832184015,0.23240174,86058.0,86056.0,0.05058]
[1765832184361,0.01161993,86059.0,86056.0,0.05058]
[1765832184561,0.24402082,86059.0,86056.0,0.28298643]
[1765832184779,0.24402082,86059.0,86056.0,0.2829859]
[1765832184986,0.23240217,86058.0,86056.0,0.04958]
[1765832185389,0.2324041,86057.0,86056.0,0.001]
[1765832185846,0.23242571,86049.0,86048.0,0.02429]
[1765832186052,0.232423,86050.0,86048.0,0.04273]
[1765832186253,0.24404382,86051.0,86048.0,0.04273]
[1765832186436,0.0116202,86057.0,86048.0,0.03006142]
[1765832186732,0.24401841,86060.0,86056.0,0.26732428]
[1765832186984,0.001,86057.0,86050.0,0.02429]
[1765832187147,0.01162007,86058.0,86051.0,0.04958]
[1765832187346,0.24403325,86054.0,86051.0,0.2936203]
[1765832187533,0.01162061,86054.0,86051.0,0.2936203]
[1765832187742,0.24403319,86054.0,86052.0,0.04958]
[1765832187938,0.23241218,86055.0,86053.0,0.03492]
[1765832188158,0.23240721,86056.0,86054.0,0.03492]
[1765832188480,0.2324066,86057.0,86054.0,0.0845]
[1765832188684,0.2440268,86057.0,86054.0,0.32853089]
[1765832189179,0.0116202,86057.0,86055.0,0.23240894]
[1765832189861,0.0116202,86057.0,86055.0,0.2324095]
[1765832190486,0.2440259,86057.0,86054.0,0.29361089]
[1765832190748,0.00010187,86060.0,86057.0,0.0116202]
[1765832190958,0.00010187,86060.0,86057.0,0.03186]
[1765832191100,0.2324014,86058.0,86057.0,0.03186]
[1765832191325,0.2440267,86058.0,86055.0,0.28067945]
[1765832191567,0.24402469,86057.0,86054.0,0.24503162]
[1765832191874,0.01162007,86058.0,86056.0,0.04827]
[1765832192058,0.01162007,86058.0,86055.0,0.01162047]
[1765832192225,0.24402229,86058.0,86057.0,0.001]
[1765832192790,0.24402684,86057.0,86054.0,0.29421275]
[1765832193049,0.24402684,86057.0,86056.0,0.001]
[1765832193911,0.01162007,86058.0,86056.0,0.001]
[1765832194065,0.23240651,86057.0,86056.0,0.001]
[1765832194275,0.2324041,86057.0,86056.0,0.001]
[1765832194454,0.2324041,86057.0,86054.0,0.29421268]
[1765832194671,0.2440243,86057.0,86054.0,0.29421268]
[1765832194872,0.23240746,86056.0,86054.0,0.05018]
[1765832195521,0.01161993,86059.0,86054.0,0.05118]
[1765832195765,0.23240379,86058.0,86055.0,0.23240827]
[1765832195967,0.23240515,86057.0,86054.0,0.05018]
[1765832196171,0.00010187,86060.0,86055.0,0.01162047]
[1765832196448,0.00010187,86060.0,86059.0,0.03351]
[1765832196626,0.23249787,86060.0,86059.0,0.03351]
[1765832196830,0.2324014,86058.0,86057.0,0.0241]
[1765832197209,0.0116202,86057.0,86054.0,0.001]
[1765832197413,0.0116202,86057.0,86054.0,0.24503049]
[1765832197614,0.2324095,86055.0,86054.0,0.001]
[1765832197830,0.2324095,86055.0,86023.0,0.06266172]
[1765832197831,0.232475,86031.0,86027.0,0.01162425]
[1765832198011,0.24408956,86034.0,86028.0,0.01162412]
[1765832198214,0.01162304,86036.0,86031.0,0.01162371]
[1765832198423,0.24408387,86036.0,86032.0,0.01162358]
[1765832198623,0.24408977,86034.0,86030.0,0.01162385]
[1765832199059,0.24409237,86033.0,86030.0,0.01200517]
[1765832199261,0.01162331,86034.0,86031.0,0.01162371]
[1765832199466,0.24408962,86034.0,86031.0,0.24409804]
[1765832199923,0.24408962,86034.0,86032.0,0.23247103]
[1765832200238,0.23247434,86031.0,86030.0,0.00038132]
[1765832200440,0.52317434,86031.0,86030.0,0.00038132]
[1765832200850,0.52317434,86031.0,86030.0,0.00138132]
[1765832201022,0.63950549,86031.0,86030.0,0.00138132]
[1765832201378,0.63950549,86031.0,86030.0,0.00038132]
[1765832201612,0.64150549,86031.0,86030.0,0.00138132]
[1765832201841,0.64150549,86031.0,86030.0,1.32e-06]
[1765832202072,0.01162817,85998.0,85995.0,0.01844]
[1765832202292,0.0116279,86000.0,85996.0,0.01162844]
[1765832202473,0.2441832,86001.0,85997.0,0.01162831]
[1765832202623,1.13382574,86020.0,86000.0,0.0116279]
[1765832202624,0.24417035,86006.0,86000.0,0.0116279]
[1765832202843,0.232548,86004.0,86000.0,0.24418513]
[1765832203022,0.01162723,86005.0,86001.0,0.232554]
[1765832203249,0.24417273,86005.0,86001.0,0.232554]
[1765832203410,0.01162763,86002.0,85999.0,0.23255878]
[1765832203908,0.01162736,86004.0,86000.0,0.24418531]
[1765832204327,0.01162736,86004.0,86001.0,0.24418263]
[1765832205120,0.01162723,86005.0,86002.0,0.23255178]
[1765832205270,0.01162655,86010.0,86007.0,0.01162696]
[1765832205473,0.01162669,86009.0,86004.0,0.01162736]
[1765832205680,0.01162709,86006.0,86003.0,0.0116275]
[1765832205844,0.24416952,86006.0,86003.0,0.0116275]
[1765832206256,0.01162709,86006.0,86001.0,0.002]
[1765832206466,0.01162709,86006.0,86002.0,0.05018]
[1765832206659,0.01162709,86006.0,86003.0,0.23254872]
[1765832207673,0.01162709,86006.0,86004.0,0.23254626]
[1765832208235,0.01162641,86011.0,86008.0,0.01162682]
[1765832208395,0.24416056,86009.0,86005.0,0.24417082]
[1765832208593,0.24416056,86009.0,86006.0,0.23254172]
[1765832209836,0.23252285,86014.0,86004.0,0.24578622]
[1765832209837,0.01162696,86007.0,86004.0,0.001]
[1765832210011,0.23254191,86006.0,86004.0,0.001]
[1765832210321,0.23254191,86006.0,86001.0,0.01844]
[1765832210322,0.23255273,86002.0,86001.0,0.01844]
[1765832210940,0.24417725,86004.0,85995.0,7.098e-05]
[1765832210941,0.01162817,85998.0,85995.0,7.098e-05]
[1765832211140,0.01162777,86001.0,85996.0,0.01844]
[1765832211341,0.0116275,86003.0,85998.0,0.24419068]
[1765832211518,0.0116275,86003.0,86001.0,0.001]
[1765832211887,0.23255294,86002.0,86001.0,0.001]
[1765832212082,0.25929602,86002.0,86001.0,0.002]
[1765832212893,0.23255294,86002.0,86001.0,0.001]
[1765832213447,0.23256625,85997.0,85996.0,0.002]
[1765832213646,0.23256895,85996.0,85995.0,7.098e-05]
[1765832214667,0.23256895,85996.0,85995.0,0.00107098]
[1765832220028,0.52326895,85996.0,85995.0,0.00107098]
[1765832220236,0.6396001,85996.0,85995.0,0.00107098]
[1765832220645,0.52326895,85996.0,85995.0,0.00107098]
[1765832220874,0.52326895,85996.0,85995.0,7.098e-05]
[1765832221272,0.23256895,85996.0,85995.0,7.098e-05]
[1765832221475,0.23356895,85996.0,85995.0,7.098e-05]
[1765832222808,0.23256895,85996.0,85995.0,7.098e-05]
[1765832223388,0.33092657,85996.0,85995.0,7.098e-05]
[1765832223590,0.33192657,85996.0,85995.0,7.098e-05]
[1765832223994,0.62262657,85996.0,85995.0,7.098e-05]
[1765832224159,0.64763598,85996.0,85995.0,7.098e-05]
[1765832224362,0.64764588,85996.0,85995.0,7.098e-05]
[1765832224581,0.54928826,85996.0,85995.0,7.098e-05]
[1765832224786,0.52426895,85996.0,85995.0,7.098e-05]
[1765832224994,0.23356895,85996.0,85995.0,7.098e-05]
[1765832225365,0.001,85996.0,85995.0,7.098e-05]
[1765832225600,0.23356895,85996.0,85995.0,7.098e-05]
[1765832226038,0.001,85996.0,85995.0,7.098e-05]
[1765832226258,0.001,85996.0,85995.0,0.31496551]
[1765832227235,0.01162696,86007.0,86004.0,0.24417352]
[1765832227606,0.2441665,86007.0,86002.0,0.01162763]
[1765832227816,0.63390198,86020.0,86005.0,0.01162723]
[1765832228034,0.24414636,86014.0,86010.0,0.2325311]
[1765832228242,0.24415,86013.0,86009.0,0.24415846]
[1765832228448,0.01162614,86013.0,86010.0,0.01162655]
[1765832228678,0.24414982,86013.0,86010.0,0.01162655]
[1765832228884,0.01162614,86013.0,86010.0,0.2325309]
[1765832229070,0.24414637,86014.0,86011.0,0.23252712]
[1765832229258,0.2441456,86015.0,86012.0,0.23252526]
[1765832229472,0.01162601,86014.0,86010.0,0.24415641]
[1765832229680,0.2441456,86015.0,86011.0,0.01162641]
[1765832230021,0.2441456,86015.0,86011.0,0.24415428]
[1765832230221,0.23252077,86014.0,86011.0,0.24515475]
[1765832230427,0.2441456,86015.0,86011.0,0.24515475]
[1765832230638,0.2441456,86015.0,86011.0,0.24415475]
[1765832231058,0.2441456,86015.0,86012.0,0.2325256]
[1765832231511,0.23251546,86016.0,86012.0,0.2325256]
[1765832231512,0.01162574,86016.0,86012.0,0.01162628]
[1765832231719,0.23252588,86012.0,86009.0,0.24415956]
[1765832231914,0.23252325,86013.0,86010.0,0.23253102]
[1765832232320,0.24414348,86015.0,86012.0,0.23252569]
[1765832232533,0.23248569,86027.0,86018.0,0.01162547]
[1765832232744,0.01162425,86027.0,86024.0,0.24411741]
[1765832232951,0.01162439,86026.0,86023.0,0.01162479]
[1765832233168,0.2441124,86026.0,86023.0,0.01162479]
[1765832233374,0.24410962,86027.0,86023.0,0.01162479]
[1765832233608,0.23249398,86024.0,86021.0,0.24412633]
[1765832233819,0.01362425,86027.0,86022.0,0.01162493]
[1765832233997,0.01362425,86027.0,86023.0,0.01162479]
[1765832234196,0.002,86027.0,86026.0,0.23248785]
[1765832234358,0.002,86027.0,86025.0,0.23249055]
[1765832234692,0.002,86027.0,86026.0,0.23248785]
[1765832234899,0.2441042,86029.0,86026.0,0.23248785]
[1765832235055,0.01162398,86029.0,86027.0,0.23248464]
[1765832235263,0.24410437,86029.0,86026.0,0.24111224]
[1765832235526,0.24409967,86031.0,86027.0,0.01162425]
[1765832235650,0.23247704,86030.0,86028.0,0.01162412]
[1765832235848,0.01162358,86032.0,86029.0,0.01162398]
[1765832236078,0.24408991,86034.0,86030.0,0.01162385]
[1765832236289,0.01162317,86035.0,86031.0,0.01162371]
[1765832236505,0.24408528,86036.0,86032.0,0.01162358]
[1765832236758,0.24409177,86034.0,86031.0,0.00862371]
[1765832236985,0.26373285,86037.0,86033.0,0.01162344]
[1765832237120,0.26373305,86037.0,86033.0,0.01162344]
[1765832237318,0.2324633,86036.0,86032.0,0.01162358]
[1765832237520,0.01162358,86032.0,86020.0,0.0116252]
[1765832237722,0.01162479,86023.0,86020.0,0.0116252]
[1765832237924,0.01162385,86030.0,86023.0,0.01162479]
[1765832238127,0.002,86032.0,86029.0,0.01162398]
[1765832238321,0.24408955,86034.0,86031.0,0.01162371]
[1765832238830,0.01162331,86034.0,86029.0,0.01162398]
[1765832239027,0.24409257,86033.0,86029.0,0.24410174]
[1765832239275,0.24409257,86033.0,86029.0,0.24510174]
[1765832239424,0.24409257,86033.0,86029.0,0.24410174]
[1765832240252,0.24409257,86033.0,86030.0,0.23247684]
[1765832240703,0.23247204,86032.0,86029.0,0.24410174]
[1765832241282,0.24409257,86033.0,86030.0,0.23247634]
[1765832241688,0.01162331,86034.0,86032.0,0.23246983]
[1765832241894,0.01162344,86033.0,86030.0,0.01162385]
[1765832242288,0.23247302,86032.0,86030.0,0.24410042]
[1765832242450,0.01162263,86039.0,86033.0,0.04461344]
[1765832242597,0.24407196,86041.0,86036.0,0.01162304]
[1765832242799,0.01162277,86038.0,86035.0,0.01162317]
[1765832243017,0.01162223,86042.0,86039.0,0.01162263]
[1765832243219,0.23244815,86041.0,86039.0,0.01162263]
[1765832243432,0.23245514,86039.0,86036.0,0.01162304]
[1765832243624,0.23245514,86039.0,86032.0,0.01162358]
[1765832243625,0.0116229,86037.0,86032.0,0.01162358]
[1765832243819,0.23246331,86036.0,86032.0,0.24409419]
[1765832244025,0.23246525,86035.0,86032.0,0.24409419]
[1765832244231,0.01162317,86035.0,86031.0,0.24409316]
[1765832244444,0.23247434,86031.0,86030.0,0.00161287]
[1765832244643,0.01162344,86033.0,86030.0,0.00161287]
[1765832245123,0.23247163,86032.0,86030.0,0.00161287]
[1765832245325,0.24409237,86033.0,86026.0,0.01844]
[1765832245326,0.23248269,86028.0,86026.0,0.01844]
[1765832245641,0.24409357,86033.0,86026.0,0.03006439]
[1765832245998,0.01162358,86032.0,86030.0,0.001]
[1765832246194,0.23247674,86031.0,86030.0,0.001]
[1765832247198,0.23247674,86031.0,86030.0,0.002]
[1765832247420,0.23247674,86031.0,86030.0,0.001]
[1765832247623,0.24410961,86027.0,86024.0,0.24411587]
[1765832247866,0.2324851,86028.0,86025.0,0.2441138]
[1765832248039,0.23247972,86030.0,86027.0,0.24410806]
[1765832248281,0.01162385,86030.0,86027.0,0.01162425]
[1765832248490,0.24410483,86029.0,86026.0,0.24411135]
[1765832248830,0.23248317,86028.0,86026.0,0.01162439]
[1765832249248,0.24410483,86029.0,86026.0,0.01162439]
[1765832250087,0.01162358,86032.0,86028.0,0.01162412]
[1765832250289,0.24409224,86034.0,86029.0,0.01162398]
[1765832250529,0.01162331,86034.0,86028.0,0.01162412]
[1765832251164,0.01162358,86032.0,86029.0,0.01162398]
[1765832251365,0.23247974,86029.0,86026.0,0.24410962]
[1765832251540,0.01162425,86027.0,86024.0,0.24411692]
[1765832251744,0.24410949,86027.0,86024.0,0.24411692]
[1765832252112,0.24410642,86029.0,86028.0,0.001]
[1765832253467,0.2441097,86027.0,86024.0,0.01162466]
[1765832253692,0.01162412,86028.0,86025.0,0.01162452]
[1765832254341,0.24411426,86026.0,86023.0,0.01851098]
[1765832254563,0.01162412,86028.0,86024.0,0.23249099]
[1765832254802,0.01162412,86028.0,86025.0,0.01462452]
[1765832255085,0.23248534,86027.0,86025.0,0.01462452]
[1765832255280,0.23248534,86027.0,86025.0,0.01362452]
[1765832255679,0.24410896,86028.0,86025.0,0.24611505]
[1765832255914,0.24410122,86030.0,86028.0,0.23248205]
[1765832256069,0.24410122,86030.0,86027.0,0.27742716]
[1765832256272,0.23248037,86029.0,86027.0,0.04494425]
[1765832256477,0.23247442,86031.0,86028.0,0.01162412]
[1765832257633,0.01162358,86032.0,86029.0,0.01162398]
[1765832257850,0.24409534,86032.0,86029.0,0.24410261]
[1765832258818,0.2440897,86034.0,86031.0,0.23247202]
[1765832259018,0.01162358,86032.0,86029.0,0.06278398]
[1765832259388,0.01162358,86032.0,86028.0,0.001]
[1765832259389,0.24409816,86031.0,86028.0,0.2324801]
[1765832259563,0.24409816,86031.0,86028.0,0.23248016]
[1765832259995,0.24409816,86031.0,86029.0,0.001]
[1765832260229,0.01162371,86031.0,86029.0,0.23347901]
[1765832260436,0.2440931,86033.0,86030.0,0.2324747]
[1765832260643,0.24410007,86031.0,86028.0,0.001]
[1765832260849,0.24410007,86031.0,86028.0,0.23248035]
[1765832261046,0.24410007,86031.0,86028.0,0.24410447]
[1765832261280,0.23247704,86030.0,86029.0,0.002]
[1765832261667,0.23247704,86030.0,86029.0,0.001]
[1765832262253,0.24409778,86033.0,86029.0,0.001]
[1765832262457,0.24409778,86033.0,86028.0,0.01262412]
[1765832262686,0.24409778,86033.0,86030.0,0.23247483]
[1765832262883,0.01162358,86032.0,86028.0,0.001]
[1765832263163,0.23247282,86032.0,86029.0,0.24410283]
[1765832263355,0.01162371,86031.0,86028.0,0.001]
[1765832263502,0.01162344,86033.0,86030.0,0.23247616]
[1765832263864,0.01162331,86034.0,86030.0,0.01162385]
[1765832264068,0.01162304,86036.0,86032.0,0.01162358]
[1765832264274,0.24407225,86042.0,86033.0,0.03505344]
[1765832264405,0.24407225,86042.0,86035.0,0.03332]
[1765832264406,0.24408321,86038.0,86035.0,0.03332]
[1765832264590,0.24407278,86040.0,86036.0,0.23246083]
[1765832264793,0.24407278,86040.0,86037.0,0.23245589]
[1765832264989,0.0116225,86040.0,86038.0,0.23245524]
[1765832265218,0.23245542,86038.0,86037.0,0.05116]
[1765832265417,0.01162223,86042.0,86037.0,0.0116229]
[1765832265615,0.24406348,86044.0,86041.0,0.23244673]
[1765832265932,0.01162223,86042.0,86039.0,0.24407291]
[1765832266140,0.0116225,86040.0,86037.0,0.00161287]
[1765832266365,0.24407423,86040.0,86037.0,0.23406979]
[1765832266536,0.24406896,86043.0,86040.0,0.0116225]
[1765832266738,0.23243593,86046.0,86040.0,0.0116225]
[1765832266938,0.001,86044.0,86043.0,0.244064]
[1765832267276,0.24404156,86051.0,86047.0,0.23243111]
[1765832267477,0.2324292,86048.0,86045.0,0.24305581]
[1765832267897,0.23243176,86047.0,86045.0,0.01062182]
[1765832268111,0.02509941,86051.0,86046.0,0.01162169]
[1765832268281,0.04289461,86055.0,86050.0,0.01162115]
[1765832268484,0.04289461,86055.0,86049.0,0.24404451]
[1765832268485,0.24403911,86052.0,86049.0,0.24404451]
[1765832268629,0.2440407,86052.0,86049.0,0.26747451]
[1765832268835,0.01162182,86045.0,86038.0,0.01162277]
[1765832269031,0.24404667,86050.0,86046.0,0.01162169]
[1765832269298,0.01162115,86050.0,86047.0,0.23243111]
[1765832269483,0.01200247,86050.0,86047.0,0.23243111]
[1765832269629,0.01200247,86050.0,86046.0,0.24405549]
[1765832269833,0.01162128,86049.0,86045.0,0.24405761]
[1765832270086,0.01162128,86049.0,86046.0,0.001]
[1765832270243,0.24404754,86049.0,86045.0,0.01162182]
[1765832270594,0.01200247,86050.0,86038.0,0.01844]
[1765832270595,0.0116225,86040.0,86038.0,0.01844]
[1765832270830,0.23244643,86042.0,86038.0,0.01844]
[1765832270831,0.01162236,86041.0,86038.0,0.01844]
[1765832271209,0.23244038,86044.0,86040.0,0.0116225]
[1765832271349,0.01162169,86046.0,86043.0,0.06837209]
[1765832271564,0.01162155,86047.0,86045.0,0.001]
[1765832271962,0.24405445,86047.0,86045.0,0.001]
[1765832272174,0.0254881,86050.0,86047.0,0.23243111]